fUST/lending_fUST_20240626
["ID","MTS","AMOUNT","RATE_DAILY","PERIOD"]
[330391362,1719342644370,-500.0,0.00016438,2]
[330391363,1719342644380,-360.81924292,0.00016438,2]
[330391364,1719342644389,-500.0,0.00016438,2]
[330391365,1719342644398,-513.54779927,0.00016438,2]
[330391366,1719342644408,-500.0,0.00016438,2]
[330391367,1719342644417,-500.0,0.00016438,2]
[330391368,1719342644426,-500.0,0.00016438,2]
[330391369,1719342644436,-500.0,0.00016438,2]
[330391370,1719342644445,-500.0,0.00016438,2]
[330391371,1719342644455,-500.0,0.00016438,2]
[330391372,1719342644464,-500.0,0.00016438,2]
[330391374,1719342644473,-506.44358204,0.00016438,2]
[330391376,1719342644484,-500.0,0.00016438,2]
[330391378,1719342644493,-500.0,0.00016438,2]
[330391380,1719342644502,-500.0,0.00016438,2]
[330391382,1719342644511,-890.76,0.00016438,2]
[330391384,1719342644521,-500.0,0.00016438,2]
[330391386,1719342644530,-500.0,0.00016438,2]
[330391388,1719342644539,-631.46747273,0.00016438,2]
[330391390,1719342644548,-500.0,0.00016438,2]
[330391392,1719342644557,-2083.15,0.00016438,2]
[330391393,1719342644567,-2083.15,0.00016438,2]
[330391395,1719342644576,-500.0,0.00016438,2]
[330391397,1719342644585,-2083.15,0.00016438,2]
[330391399,1719342644594,-500.0,0.00016438,2]
[330391402,1719342644604,-2083.15,0.00016438,2]
[330391403,1719342644615,-2083.15,0.00016438,2]
[330391406,1719342644624,-500.0,0.00016438,2]
[330391407,1719342644633,-500.0,0.00016438,2]
[330391409,1719342644643,-500.0,0.00016438,2]
[330391411,1719342644651,-500.0,0.00016438,2]
[330391413,1719342644661,-500.0,0.00016438,2]
[330391415,1719342644670,-801.13,0.00016438,2]
[330391417,1719342644679,-498.4144791,0.00016438,2]
[330391419,1719342644688,-500.0,0.00016438,2]
[330391421,1719342644697,-501.68203111,0.00016438,2]
[330391423,1719342644707,-500.0,0.00016438,2]
[330391425,1719342644720,-500.0,0.00016438,2]
[330391427,1719342644730,-1405.47,0.00016438,2]
[330391430,1719342644739,-500.0,0.00016438,2]
[330391432,1719342644748,-500.0,0.00016438,2]
[330391434,1719342644759,-1022.91,0.00016438,2]
[330391435,1719342644768,-500.0,0.00016438,2]
[330391437,1719342644777,-500.0,0.00016438,2]
[330391440,1719342644786,-957.29,0.00016438,2]
[330391441,1719342644796,-500.0,0.00016438,2]
[330391443,1719342644806,-500.0,0.00016438,2]
[330391446,1719342644816,-500.0,0.00016438,2]
[330391448,1719342644825,-500.0,0.00016438,2]
[330391450,1719342644835,-500.0,0.00016438,2]
[330391452,1719342644844,-500.0,0.00016438,2]
[330391453,1719342644853,-500.0,0.00016438,2]
[330391455,1719342644864,-1699.7,0.00016438,2]
[330391457,1719342644873,-500.0,0.00016438,2]
[330391459,1719342644882,-500.0,0.00016438,2]
[330391461,1719342644891,-500.0,0.00016438,2]
[330391463,1719342644900,-500.0,0.00016438,2]
[330391465,1719342644909,-500.0,0.00016438,2]
[330391467,1719342644918,-500.0,0.00016438,2]
[330391469,1719342644928,-1771.63,0.00016438,2]
[330391471,1719342644937,-500.0,0.00016438,2]
[330391472,1719342644947,-500.0,0.00016438,2]
[330391473,1719342644956,-667.63,0.00016438,2]
[330391474,1719342644965,-508.5865464,0.00016438,2]
[330391475,1719342644974,-502.8805083,0.00016438,2]
[330391476,1719342644983,-27765.73,0.00016438,2]
[330391477,1719342644992,-500.0,0.00016438,2]
[330391478,1719342645001,-501.15932819,0.00016438,2]
[330391479,1719342645010,-500.0,0.00016438,2]
[330391480,1719342645019,-269.11257367,0.00016438,2]
[330391481,1719342645028,-10055.66,0.00016438,2]
[330391482,1719342645037,-500.0,0.00016438,2]
[330391483,1719342645046,-500.0,0.00016438,2]
[330391484,1719342645056,-509.66106561,0.00016438,2]
[330391485,1719342645065,-500.0,0.00016438,2]
[330391487,1719342645075,-1003.45,0.00016438,2]
[330391488,1719342645085,-500.0,0.00016438,2]
[330391489,1719342645094,-5162.33,0.00016438,2]
[330391490,1719342645103,-563.28767033,0.00016438,2]
[330391492,1719342645116,-250.0,0.00016438,2]
[330391494,1719342645125,-765.88,0.00016438,2]
[330391496,1719342645134,-868.49,0.00016438,2]
[330391498,1719342645143,-26944.35,0.00016438,2]
[330391500,1719342645153,-5454.1,0.00016438,2]
[330391502,1719342645163,-507.51842921,0.00016438,2]
[330391504,1719342645172,-500.0,0.00016438,2]
[330391506,1719342645182,-500.0,0.00016438,2]
[330391508,1719342645191,-500.0,0.00016438,2]
[330391510,1719342645201,-500.0,0.00016438,2]
[330391512,1719342645210,-500.0,0.00016438,2]
[330391514,1719342645219,-5620.95,0.00016438,2]
[330391516,1719342645228,-500.0,0.00016438,2]
[330391518,1719342645238,-500.0,0.00016438,2]
[330391520,1719342645247,-500.0,0.00016438,2]
[330391522,1719342645256,-500.0,0.00016438,2]
[330391524,1719342645265,-509.05966169,0.00016438,2]
[330391526,1719342645275,-197.144922,0.00016438,2]
[330391528,1719342645284,-500.0,0.00016438,2]
[330391530,1719342645294,-178.65397086,0.00016438,2]
[330391532,1719342645303,-500.0,0.00016438,2]
[330391534,1719342645312,-500.0,0.00016438,2]
[330391536,1719342645321,-500.0,0.00016438,2]
[330391538,1719342645330,-500.0,0.00016438,2]
[330391540,1719342645339,-228.65599,0.00016438,2]
[330391542,1719342645348,-228.65599,0.00016438,2]
[330391544,1719342645358,-1309.59,0.00016438,2]
[330391546,1719342645367,-228.65599,0.00016438,2]
[330391548,1719342645376,-500.0,0.00016438,2]
[330391550,1719342645385,-500.0,0.00016438,2]
[330391552,1719342645394,-698.76,0.00016438,2]
[330391554,1719342645403,-228.65599,0.00016438,2]
[330391556,1719342645412,-1224.52,0.00016438,2]
[330391558,1719342645421,-228.65599,0.00016438,2]
[330391560,1719342645431,-228.65599,0.00016438,2]
[330391562,1719342645440,-500.0,0.00016438,2]
[330391564,1719342645450,-500.0,0.00016438,2]
[330391565,1719342645459,-500.0,0.00016438,2]
[330391567,1719342645468,-500.0,0.00016438,2]
[330391569,1719342645477,-500.0,0.00016438,2]
[330391571,1719342645486,-3181.28,0.00016438,2]
[330391573,1719342645495,-500.0,0.00016438,2]
[330391575,1719342645505,-500.0,0.00016438,2]
[330391577,1719342645514,-500.0,0.00016438,2]
[330391579,1719342645524,-500.0,0.00016438,2]
[330391581,1719342645533,-500.0,0.00016438,2]
[330391584,1719342645543,-10355.04,0.00016438,2]
[330391586,1719342645552,-500.0,0.00016438,2]
[330391588,1719342645561,-879.25,0.00016438,2]
[330391590,1719342645571,-500.0,0.00016438,2]
[330391592,1719342645581,-500.0,0.00016438,2]
[330391594,1719342645590,-507.66731953,0.00016438,2]
[330391596,1719342645599,-583.71894589,0.00016438,2]
[330391598,1719342645609,-653.5,0.00016438,2]
[330391600,1719342645618,-500.0,0.00016438,2]
[330391602,1719342645626,-500.0,0.00016438,2]
[330391604,1719342645635,-715.21,0.00016438,2]
[330391606,1719342645644,-500.0,0.00016438,2]
[330391607,1719342645653,-500.0,0.00016438,2]
[330391609,1719342645663,-925.32,0.00016438,2]
[330391611,1719342645672,-500.0,0.00016438,2]
[330391613,1719342645682,-501.03137754,0.00016438,2]
[330391615,1719342645691,-500.0,0.00016438,2]
[330391617,1719342645700,-500.0,0.00016438,2]
[330391619,1719342645710,-500.0,0.00016438,2]
[330391621,1719342645722,-1352.68,0.00016438,2]
[330391623,1719342645731,-500.0,0.00016438,2]
[330391625,1719342645741,-500.0,0.00016438,2]
[330391627,1719342645750,-500.0,0.00016438,2]
[330391629,1719342645762,-500.0,0.00016438,2]
[330391631,1719342645771,-2140.63,0.00016438,2]
[330391633,1719342645781,-601.59,0.00016438,2]
[330391635,1719342645791,-1015.53,0.00016438,2]
[330391637,1719342645804,-151.0,0.00016438,2]
[330391640,1719342645815,-151.0,0.00016438,2]
[330391642,1719342645824,-151.0,0.00016438,2]
[330391643,1719342645834,-264.03767956,0.00016438,2]
[330391645,1719342645843,-500.0,0.00016438,2]
[330391648,1719342645852,-500.0,0.00016438,2]
[330391649,1719342645864,-500.0,0.00016438,2]
[330391651,1719342645873,-500.0,0.00016438,2]
[330391653,1719342645883,-500.0,0.00016438,2]
[330391655,1719342645892,-500.0,0.00016438,2]
[330391657,1719342645901,-500.0,0.00016438,2]
[330391659,1719342645910,-500.0,0.00016438,2]
[330391662,1719342645919,-301.77139906,0.00016438,2]
[330391664,1719342645928,-7628.81,0.00016438,2]
[330391667,1719342645938,-1298.55,0.00016438,2]
[330391669,1719342645947,-500.0,0.00016438,2]
[330391671,1719342645956,-1158.35,0.00016438,2]
[330391675,1719342645965,-500.0,0.00016438,2]
[330391678,1719342645974,-659.94,0.00016438,2]
[330391681,1719342645983,-626.63768333,0.00016438,2]
[330391684,1719342645993,-3142.45,0.00016438,2]
[330391687,1719342646002,-500.0,0.00016438,2]
[330391690,1719342646011,-578.67,0.00016438,2]
[330391693,1719342646021,-500.0,0.00016438,2]
[330391696,1719342646030,-500.0,0.00016438,2]
[330391699,1719342646039,-520.34103714,0.00016438,2]
[330391702,1719342646048,-500.0,0.00016438,2]
[330391705,1719342646057,-500.0,0.00016438,2]
[330391708,1719342646065,-151.0,0.00016438,2]
[330391711,1719342646074,-151.0,0.00016438,2]
[330391714,1719342646083,-500.0,0.00016438,2]
[330391717,1719342646092,-232.832029,0.00016438,2]
[330391720,1719342646101,-500.0,0.00016438,2]
[330391722,1719342646113,-500.0,0.00016438,2]
[330391725,1719342646122,-500.0,0.00016438,2]
[330391728,1719342646132,-500.0,0.00016438,2]
[330391731,1719342646141,-500.0,0.00016438,2]
[330391734,1719342646150,-515.79954124,0.00016438,2]
[330391735,1719342646160,-1044.21742,0.00016438,2]
[330391737,1719342646170,-1044.21742,0.00016438,2]
[330391739,1719342646179,-1044.21742,0.00016438,2]
[330391741,1719342646189,-1111.88,0.00016438,2]
[330391743,1719342646198,-500.0,0.00016438,2]
[330391745,1719342646208,-1044.21742,0.00016438,2]
[330391747,1719342646217,-1044.21742,0.00016438,2]
[330391749,1719342646226,-453.81455,0.00016438,2]
[330391751,1719342646236,-1044.21742,0.00016438,2]
[330391753,1719342646245,-500.0,0.00016438,2]
[330391755,1719342646254,-500.0,0.00016438,2]
[330391757,1719342646263,-500.0,0.00016438,2]
[330391759,1719342646272,-500.0,0.00016438,2]
[330391761,1719342646282,-4814.4,0.00016438,2]
[330391763,1719342646291,-500.0,0.00016438,2]
[330391765,1719342646300,-500.0,0.00016438,2]
[330391767,1719342646313,-151.0,0.00016438,2]
[330391769,1719342646332,-151.0,0.00016438,2]
[330391771,1719342646342,-151.0,0.00016438,2]
[330391773,1719342646355,-500.0,0.00016438,2]
[330391775,1719342646377,-500.0,0.00016438,2]
[330391777,1719342646386,-500.0,0.00016438,2]
[330391779,1719342646395,-927.59,0.00016438,2]
[330391781,1719342646405,-772.55,0.00016438,2]
[330391783,1719342646414,-500.0,0.00016438,2]
[330391784,1719342646423,-504.0749405,0.00016438,2]
[330391786,1719342646432,-500.0,0.00016438,2]
[330391788,1719342646442,-500.0,0.00016438,2]
[330391790,1719342646451,-500.0,0.00016438,2]
[330391792,1719342646460,-500.0,0.00016438,2]
[330391794,1719342646469,-500.0,0.00016438,2]
[330391796,1719342646478,-500.0,0.00016438,2]
[330391798,1719342646487,-500.0,0.00016438,2]
[330391800,1719342646497,-2923.22,0.00016438,2]
[330391802,1719342646506,-1135.83,0.00016438,2]
[330391804,1719342646515,-500.0,0.00016438,2]
[330391806,1719342646525,-2184.92,0.00016438,2]
[330391808,1719342646535,-151.0,0.00016438,2]
[330391810,1719342646544,-151.0,0.00016438,2]
[330391812,1719342646553,-151.0,0.00016438,2]
[330391814,1719342646563,-151.0,0.00016438,2]
[330391816,1719342646571,-151.0,0.00016438,2]
[330391818,1719342646581,-151.0,0.00016438,2]
[330391820,1719342646590,-360.26957227,0.000165,2]
[330391823,1719342646600,-639.67,0.00016708,2]
[330391825,1719342646610,-151.0,0.00016709,2]
[330391827,1719342646620,-151.0,0.00016709,2]
[330391829,1719342646629,-639.67,0.0001671,2]
[330391831,1719342646638,-639.67,0.0001671,2]
[330391833,1719342646651,-639.67,0.0001671,2]
[330391835,1719342646660,-639.67,0.0001671,2]
[330391836,1719342646670,-639.89498546,0.0001671,2]
[330391838,1719342646679,-2083.15,0.0001671,2]
[330391840,1719342646688,-2083.15,0.00016711,2]
[330391842,1719342646698,-2083.15,0.00016711,2]
[330391844,1719342646707,-2083.15,0.00016711,2]
[330391846,1719342646722,-2083.15,0.00016711,2]
[330391848,1719342646731,-2083.15,0.00016711,2]
[330391850,1719342646741,-2083.15,0.00016711,2]
[330391852,1719342646750,-2083.15,0.00016711,2]
[330391853,1719342646759,-2083.15,0.00016711,2]
[330391855,1719342646768,-2083.15,0.00016711,2]
[330391857,1719342646778,-2083.15,0.00016711,2]
[330391859,1719342646787,-153.397505,0.00016711,2]
[330391861,1719342646799,-1044.21742,0.00016711,2]
[330391863,1719342646808,-1044.21742,0.00016711,2]
[330391865,1719342646817,-151.0,0.00016711,2]
[330391867,1719342646827,-768.6298791,0.00016712,2]
[330391870,1719342646845,-32855.823038,0.00016712,2]
[330391872,1719342646854,-500.0,0.00016712,2]
[330391874,1719342646865,-500.0,0.00016712,2]
[330391876,1719342646875,-500.0,0.00016712,2]
[330391878,1719342646883,-513.83881378,0.00016712,2]
[330391880,1719342646893,-500.0,0.00016712,2]
[330391888,1719342647011,-500.0,0.00016712,2]
[330391889,1719342647022,-500.0,0.00016712,2]
[330391890,1719342647032,-500.0,0.00016712,2]
[330391891,1719342647042,-500.0,0.00016712,2]
[330391892,1719342647051,-509.9620315,0.00016712,2]
[330391893,1719342647061,-500.0,0.00016712,2]
[330391894,1719342647070,-500.0,0.00016712,2]
[330391895,1719342647079,-500.0,0.00016712,2]
[330391896,1719342647089,-608.21961996,0.00016712,2]
[330391897,1719342647098,-500.0,0.00016712,2]
[330391898,1719342647107,-633.98676371,0.00016712,2]
[330391899,1719342647117,-505.19743636,0.00016712,2]
[330391900,1719342647127,-500.0,0.00016712,2]
[330391901,1719342647136,-500.0,0.00016712,2]
[330391902,1719342647146,-500.0,0.00016712,2]
[330391903,1719342647156,-506.59043633,0.00016712,2]
[330391904,1719342647166,-500.0,0.00016712,2]
[330391905,1719342647175,-500.0,0.00016712,2]
[330391906,1719342647184,-500.0,0.00016712,2]
[330391907,1719342647194,-500.0,0.00016712,2]
[330391908,1719342647203,-500.27130574,0.00016712,2]
[330391909,1719342647213,-769.43,0.00016712,2]
[330391910,1719342647222,-500.0,0.00016712,2]
[330391911,1719342647232,-550.20916548,0.00016712,2]
[330391912,1719342647241,-501.17190892,0.00016712,2]
[330391913,1719342647250,-1441.65,0.00016712,2]
[330391914,1719342647259,-500.0,0.00016712,2]
[330391915,1719342647269,-500.0,0.00016712,2]
[330391916,1719342647278,-506.08457498,0.00016712,2]
[330391917,1719342647287,-504.08340992,0.00016712,2]
[330391918,1719342647297,-612.92,0.00016712,2]
[330391919,1719342647306,-500.0,0.00016712,2]
[330391920,1719342647316,-500.0,0.00016712,2]
[330391921,1719342647325,-500.0,0.00016712,2]
[330391922,1719342647335,-420.03901091,0.00016712,2]
[330391923,1719342647344,-500.0,0.00016712,2]
[330391924,1719342647353,-500.0,0.00016712,2]
[330391925,1719342647364,-500.0,0.00016712,2]
[330391926,1719342647373,-500.0,0.00016712,2]
[330391927,1719342647383,-528.42616692,0.00016712,2]
[330391928,1719342647392,-500.0,0.00016712,2]
[330391929,1719342647401,-500.0,0.00016712,2]
[330391930,1719342647411,-548.06941821,0.00016712,2]
[330391931,1719342647420,-1037.94,0.00016712,2]
[330391932,1719342647430,-500.0,0.00016712,2]
[330391933,1719342647439,-508.68862116,0.00016712,2]
[330391935,1719342647448,-500.0,0.00016712,2]
[330391937,1719342647458,-500.0,0.00016712,2]
[330391939,1719342647467,-500.0,0.00016712,2]
[330391941,1719342647477,-500.0,0.00016712,2]
[330391943,1719342647487,-500.0,0.00016712,2]
[330391945,1719342647496,-518.72241247,0.00016712,2]
[330391947,1719342647506,-500.0,0.00016712,2]
[330391949,1719342647515,-500.0,0.00016712,2]
[330391951,1719342647525,-500.0,0.00016712,2]
[330391953,1719342647534,-500.0,0.00016712,2]
[330391955,1719342647543,-500.0,0.00016712,2]
[330391957,1719342647552,-500.0,0.00016712,2]
[330391958,1719342647562,-588.41874565,0.00016712,2]
[330391960,1719342647571,-500.0,0.00016712,2]
[330391962,1719342647580,-747.79,0.00016712,2]
[330391964,1719342647590,-500.0,0.00016712,2]
[330391965,1719342647598,-500.0,0.00016712,2]
[330391966,1719342647607,-577.94848079,0.00016712,2]
[330391967,1719342647619,-290.63593593,0.00016712,2]
[330391968,1719342647628,-500.0,0.00016712,2]
[330391969,1719342647637,-500.0,0.00016712,2]
[330391970,1719342647645,-500.0,0.00016712,2]
[330391971,1719342647654,-1282.49,0.00016712,2]
[330391972,1719342647663,-500.0,0.00016712,2]
[330391973,1719342647672,-500.0,0.00016712,2]
[330391974,1719342647682,-500.0,0.00016712,2]
[330391975,1719342647691,-500.0,0.00016712,2]
[330391976,1719342647700,-500.0,0.00016712,2]
[330391977,1719342647709,-500.0,0.00016712,2]
[330391978,1719342647723,-531.48477528,0.00016712,2]
[330391979,1719342647732,-500.0,0.00016712,2]
[330391980,1719342647741,-500.0,0.00016712,2]
[330391981,1719342647750,-1692.75,0.00016712,2]
[330391982,1719342647760,-588.41,0.00016712,2]
[330391983,1719342647769,-521.89064067,0.00016712,2]
[330391984,1719342647778,-500.0,0.00016712,2]
[330391985,1719342647787,-500.0,0.00016712,2]
[330391986,1719342647801,-500.0,0.00016712,2]
[330391987,1719342647810,-619.76,0.00016712,2]
[330391988,1719342647819,-500.0,0.00016712,2]
[330391989,1719342647828,-500.0,0.00016712,2]
[330391990,1719342647837,-1312.93,0.00016712,2]
[330391991,1719342647846,-500.83088644,0.00016712,2]
[330391992,1719342647855,-541.36,0.00016712,2]
[330391993,1719342647865,-500.0,0.00016712,2]
[330391994,1719342647874,-501.46935153,0.00016712,2]
[330391995,1719342647883,-500.0,0.00016712,2]
[330391996,1719342647892,-1188.54,0.00016712,2]
[330391997,1719342647901,-500.0,0.00016712,2]
[330391998,1719342647910,-500.0,0.00016712,2]
[330391999,1719342647919,-500.0,0.00016712,2]
[330392000,1719342647929,-500.0,0.00016712,2]
[330392001,1719342647938,-608.35,0.00016712,2]
[330392002,1719342647948,-163.38655752,0.00016712,2]
[330392003,1719342647957,-500.0,0.00016712,2]
[330392004,1719342647966,-500.0,0.00016712,2]
[330392005,1719342647975,-500.0,0.00016712,2]
[330392006,1719342647984,-380.76182546,0.00016712,2]
[330392007,1719342647993,-395.96139919,0.00016712,2]
[330392008,1719342648002,-500.0,0.00016712,2]
[330392009,1719342648011,-500.0,0.00016712,2]
[330392010,1719342648020,-500.0,0.00016712,2]
[330392011,1719342648029,-500.0,0.00016712,2]
[330392012,1719342648038,-500.96391304,0.00016712,2]
[330392013,1719342648047,-500.0,0.00016712,2]
[330392014,1719342648056,-665.2,0.00016712,2]
[330392016,1719342648065,-500.0,0.00016712,2]
[330392017,1719342648074,-500.0,0.00016712,2]
[330392019,1719342648083,-500.0,0.00016712,2]
[330392021,1719342648093,-500.0,0.00016712,2]
[330392023,1719342648102,-500.0,0.00016712,2]
[330392025,1719342648113,-500.0,0.00016712,2]
[330392027,1719342648121,-500.0,0.00016712,2]
[330392029,1719342648130,-500.0,0.00016712,2]
[330392031,1719342648139,-500.0,0.00016712,2]
[330392033,1719342648149,-500.0,0.00016712,2]
[330392035,1719342648161,-500.0,0.00016712,2]
[330392037,1719342648170,-516.50049583,0.00016712,2]
[330392039,1719342648180,-500.0,0.00016712,2]
[330392041,1719342648189,-2531.92,0.00016712,2]
[330392042,1719342648198,-667.29,0.00016712,2]
[330392044,1719342648207,-500.0,0.00016712,2]
[330392046,1719342648217,-1394.59,0.00016712,2]
[330392048,1719342648226,-8628.86,0.00016712,2]
[330392050,1719342648235,-501.97979622,0.00016712,2]
[330392052,1719342648244,-500.0,0.00016712,2]
[330392054,1719342648254,-500.0,0.00016712,2]
[330392056,1719342648263,-500.0,0.00016712,2]
[330392058,1719342648272,-500.0,0.00016712,2]
[330392060,1719342648281,-500.0,0.00016712,2]
[330392062,1719342648290,-500.0,0.00016712,2]
[330392064,1719342648299,-500.0,0.00016712,2]
[330392066,1719342648308,-915.09,0.00016712,2]
[330392068,1719342648317,-500.0,0.00016712,2]
[330392070,1719342648326,-850.3,0.00016712,2]
[330392072,1719342648335,-509.52620357,0.00016712,2]
[330392074,1719342648344,-500.0,0.00016712,2]
[330392076,1719342648354,-500.0,0.00016712,2]
[330392078,1719342648364,-1739.18,0.00016712,2]
[330392079,1719342648373,-500.0,0.00016712,2]
[330392081,1719342648382,-500.0,0.00016712,2]
[330392083,1719342648391,-500.0,0.00016712,2]
[330392085,1719342648400,-500.0,0.00016712,2]
[330392087,1719342648409,-500.0,0.00016712,2]
[330392089,1719342648418,-500.0,0.00016712,2]
[330392091,1719342648428,-500.0,0.00016712,2]
[330392093,1719342648436,-500.0,0.00016712,2]
[330392095,1719342648446,-151.0,0.00016712,2]
[330392096,1719342648454,-151.0,0.00016712,2]
[330392098,1719342648463,-151.0,0.00016712,2]
[330392100,1719342648473,-263.331674,0.00016712,2]
[330392102,1719342648483,-500.83380739,0.00016712,2]
[330392104,1719342648492,-500.0,0.00016712,2]
[330392106,1719342648501,-500.0,0.00016712,2]
[330392108,1719342648511,-500.0,0.00016712,2]
[330392110,1719342648520,-500.0,0.00016712,2]
[330392112,1719342648531,-500.0,0.00016712,2]
[330392114,1719342648540,-500.0,0.00016712,2]
[330392116,1719342648550,-500.0,0.00016712,2]
[330392118,1719342648559,-421.16001807,0.00016712,2]
[330392120,1719342648569,-500.0,0.00016712,2]
[330392122,1719342648579,-516.24423894,0.00016712,2]
[330392124,1719342648588,-500.0,0.00016712,2]
[330392126,1719342648597,-500.0,0.00016712,2]
[330392128,1719342648607,-500.0,0.00016712,2]
[330392130,1719342648617,-500.0,0.00016712,2]
[330392132,1719342648626,-500.0,0.00016712,2]
[330392134,1719342648636,-890.76,0.00016712,2]
[330392136,1719342648646,-500.0,0.00016712,2]
[330392138,1719342648655,-500.0,0.00016712,2]
[330392140,1719342648667,-497.20885025,0.00016712,2]
[330392142,1719342648676,-500.0,0.00016712,2]
[330392144,1719342648685,-500.0,0.00016712,2]
[330392146,1719342648694,-504.64278425,0.00016712,2]
[330392148,1719342648703,-505.21045049,0.00016712,2]
[330392150,1719342648713,-542.23558517,0.00016712,2]
[330392152,1719342648725,-801.13,0.00016712,2]
[330392154,1719342648734,-500.0,0.00016712,2]
[330392156,1719342648743,-500.0,0.00016712,2]
[330392157,1719342648752,-151.0,0.00016712,2]
[330392159,1719342648763,-151.0,0.00016712,2]
[330392161,1719342648772,-151.0,0.00016712,2]
[330392162,1719342648781,-151.0,0.00016712,2]
[330392164,1719342648791,-151.0,0.00016712,2]
[330392166,1719342648803,-390.66311929,0.00016712,2]
[330392168,1719342648812,-151.0,0.00016712,2]
[330392170,1719342648821,-1405.47,0.00016712,2]
[330392172,1719342648831,-274.850563,0.00016712,2]
[330392174,1719342648840,-500.83738137,0.00016712,2]
[330392176,1719342648849,-540.25,0.00016712,2]
[330392178,1719342648857,-1022.91,0.00016712,2]
[330392179,1719342648868,-500.0,0.00016712,2]
[330392181,1719342648878,-500.0,0.00016712,2]
[330392183,1719342648887,-957.29,0.00016712,2]
[330392185,1719342648897,-500.0,0.00016712,2]
[330392187,1719342648906,-525.8112766,0.00016712,2]
[330392189,1719342648915,-500.0,0.00016712,2]
[330392191,1719342648925,-500.0,0.00016712,2]
[330392193,1719342648934,-501.29991079,0.00016712,2]
[330392195,1719342648943,-500.0,0.00016712,2]
[330392197,1719342648952,-515.18713681,0.00016712,2]
[330392199,1719342648961,-1699.7,0.00016712,2]
[330392201,1719342648970,-500.0,0.00016712,2]
[330392202,1719342648979,-628.37055312,0.00016712,2]
[330392204,1719342648988,-483.5,0.00016712,2]
[330392206,1719342648998,-502.0824708,0.00016712,2]
[330392208,1719342649007,-500.0,0.00016712,2]
[330392210,1719342649016,-500.0,0.00016712,2]
[330392212,1719342649025,-1771.63,0.00016712,2]
[330392214,1719342649035,-500.0,0.00016712,2]
[330392216,1719342649044,-500.0,0.00016712,2]
[330392218,1719342649054,-667.63,0.00016712,2]
[330392220,1719342649063,-27765.73,0.00016712,2]
[330392221,1719342649072,-502.83346628,0.00016712,2]
[330392223,1719342649081,-500.0,0.00016712,2]
[330392225,1719342649091,-10055.66,0.00016712,2]
[330392227,1719342649101,-500.0,0.00016712,2]
[330392229,1719342649110,-500.0,0.00016712,2]
[330392231,1719342649121,-500.0,0.00016712,2]
[330392233,1719342649131,-1003.45,0.00016712,2]
[330392235,1719342649140,-500.0,0.00016712,2]
[330392237,1719342649150,-5162.33,0.00016712,2]
[330392239,1719342649161,-250.0,0.00016712,2]
[330392241,1719342649171,-765.88,0.00016712,2]
[330392243,1719342649181,-868.49,0.00016712,2]
[330392245,1719342649191,-26944.35,0.00016712,2]
[330392247,1719342649201,-5454.1,0.00016712,2]
[330392249,1719342649210,-558.27635501,0.00016712,2]
[330392251,1719342649219,-500.0,0.00016712,2]
[330392253,1719342649229,-500.0,0.00016712,2]